bitfinex/quotes_SOLUSD_20240816
["timestamp","ask_amount","ask_price","bid_price","bid_amount"]
[1723820715199,7.1881,139.12,139.08,7.19]
[1723820715368,7.1887,139.11,139.07,0.50196]
[1723820715573,7.1887,139.11,139.07,0.37647]
[1723820715804,7.1887,139.11,139.07,7.56707]
[1723820715999,3.27889887,139.2,139.07,0.37647]
[1723820716182,65.38,139.2,139.09,0.12549]
[1723820716390,7.185,139.18,139.13,7.1873]
[1723820716725,7.185,139.18,139.12,17.9695]
[1723820716726,65.38,139.2,139.12,25.1574]
[1723820716902,7.1855,139.17,139.13,0.12549]
[1723820717104,7.1853,139.18,139.13,7.31279]
[1723820717289,7.1853,139.18,139.14,8.74916526]
[1723820717472,7.1853,139.18,139.14,0.25098]
[1723820717793,7.1855,139.17,139.14,0.25098]
[1723820717991,6.0037,139.21,139.16,7.1858]
[1723820718198,6.0037,139.21,139.17,1.687356]
[1723820718389,6.0037,139.21,139.17,8.872656]
[1723820718390,7.1835,139.21,139.17,8.872656]
[1723820719418,7.1839,139.2,139.15,7.43728]
[1723820719725,7.1845,139.19,139.16,0.12549]
[1723820720076,7.1851,139.18,139.14,25.40448]
[1723820720478,7.1851,139.18,139.14,18.21768]
[1723820721079,0.8223784,139.24,139.12,7.1876]
[1723820721080,65.38,139.23,139.12,7.1876]
[1723820721287,65.0,139.22,139.11,33.824]
[1723820722009,65.0,139.22,139.12,7.1879]
[1723820722205,65.0,139.22,139.11,41.0124]
[1723820722413,65.0,139.22,139.08,17.9744]
[1723820722707,65.0,139.22,139.1,7.1886]
[1723820723384,65.0,139.22,139.11,7.1885]
[1723820723791,65.0,139.22,139.12,7.188]
[1723820724180,65.0,139.22,139.13,0.12549]
[1723820724508,67.78557513,139.22,139.13,1.89653438]
[1723820724805,7.1853,139.18,139.13,9.08393438]
[1723820725007,67.78557513,139.22,139.13,0.50196]
[1723820725402,7.1845,139.19,139.15,7.1864]
[1723820725613,7.1845,139.19,139.16,0.25098]
[1723820725787,7.185,139.18,139.14,25.154]
[1723820725988,7.185,139.18,139.15,1.43617402]
[1723820726196,7.1844,139.19,139.16,0.50196]
[1723820726415,7.1844,139.19,139.16,0.12549]
[1723820726606,7.1844,139.19,139.16,1.43576128]
[1723820726919,7.1844,139.19,139.16,1.68674128]
[1723820727281,7.185,139.18,139.15,0.25098]
[1723820727482,7.185,139.18,139.15,1.4362426]
[1723820727706,0.8223784,139.24,139.15,1.4362426]
[1723820727878,65.8223784,139.24,139.15,1.4362426]
[1723820728092,65.8223784,139.24,139.14,25.1536]
[1723820728680,65.8223784,139.24,139.13,1.81240291]
[1723820729028,65.38,139.14,139.09,382.4]
[1723820729186,6.4092,139.22,139.07,397.835]
[1723820729187,65.38,139.12,139.07,397.835]
[1723820729391,6.4092,139.13,139.04,400.3799]
[1723820729596,6.4092,139.13,139.04,382.4]
[1723820729797,6.4092,139.13,138.99,382.4]
[1723820729798,65.0,139.12,138.99,382.4]
[1723820730106,65.38,139.05,139.0,7.1941]
[1723820730307,65.38,139.05,139.0,389.5941]
[1723820730506,65.38,139.05,139.0,382.4]
[1723820731514,7.1927,139.03,139.0,382.4]
[1723820732023,7.1937,139.01,139.0,382.4]
[1723820732314,72.5737,139.01,139.0,382.4]
[1723820732498,72.5737,139.01,138.95,382.4]
[1723820732499,65.38,139.01,138.95,382.4]
[1723820732818,6.0322,139.03,138.95,382.4]
[1723820733113,20.0,139.02,138.95,382.4]
[1723820733318,65.38,138.98,138.95,382.4]
[1723820733610,65.38,138.98,138.92,17.9958]
[1723820733611,65.38,139.0,138.92,400.3958]
[1723820733797,7.1962,138.97,138.92,407.5941]
[1723820734197,85.38,139.02,138.89,17.9995]
[1723820734512,7.1978,138.94,138.89,400.3995]
[1723820734711,7.1978,138.94,138.89,17.9995]
[1723820734931,7.1968,138.95,138.89,17.9995]
[1723820735131,7.1976,138.94,138.89,25.1993]
[1723820735431,7.1982,138.93,138.88,389.6003]
[1723820735801,7.1983,138.92,138.88,382.4]
[1723820735996,7.1983,138.92,138.85,16.4377]
[1723820735997,85.38,139.02,138.83,18.0071]
[1723820736341,65.38,138.91,138.83,25.2101]
[1723820736496,7.2003,138.89,138.83,25.2101]
[1723820736695,65.38,138.91,138.8,34.1446]
[1723820736896,20.0,138.9,138.8,34.1446]
[1723820737096,7.2006,138.88,138.83,7.2028]
[1723820737414,20.0,138.9,138.82,7.2034]
[1723820737415,7.201,138.87,138.82,7.2034]
[1723820737593,20.0,138.9,138.8,35.58429935]
[1723820737594,7.2015,138.86,138.81,7.2039]
[1723820738123,20.0,138.9,138.8,34.1446]
[1723820738298,65.38,138.95,138.83,7.203]
[1723820738502,65.0,138.94,138.83,7.203]
[1723820738717,7.201,138.87,138.82,25.2112]
[1723820739248,65.38,138.87,138.79,18.0128]
[1723820739722,7.2015,138.86,138.81,7.204]
[1723820740032,7.2015,138.86,138.75,23.31280603]
[1723820740033,65.38,138.93,138.82,1.43965608]
[1723820740195,7.1984,138.92,138.86,7.2009]
[1723820740395,7.199,138.91,138.87,1.4390792]
[1723820740616,71.8851,138.95,138.87,1.4390792]
[1723820740822,71.8851,138.95,138.88,0.12549]
[1723820741024,71.8851,138.95,138.88,0.37647]
[1723820741411,7.1984,138.92,138.88,0.37647]
[1723820741811,6.5051,138.95,138.82,18.0085]
[1723820742013,7.2009,138.87,138.83,0.85234298]
[1723820742223,7.2009,138.87,138.82,25.2119]
[1723820742814,7.2004,138.89,138.83,0.852036]
[1723820743017,14.03598532,138.95,138.84,18.0055]
[1723820743226,7.1989,138.91,138.86,7.2014]
[1723820743408,7.1995,138.9,138.85,7.2019]
[1723820743613,7.1995,138.9,138.86,0.25098]
[1723820743811,7.1995,138.9,138.86,0.37647]
[1723820744015,65.38,138.94,138.86,0.37647]
[1723820744226,6.5051,138.95,138.88,0.12549]
[1723820744424,7.1984,138.92,138.88,0.12549]
[1723820744637,6.5051,138.95,138.88,0.25098]
[1723820744819,6.5051,138.95,138.87,382.52549]
[1723820745722,65.38,138.93,138.87,382.4]
[1723820746031,6.5051,138.95,138.88,0.50196]
[1723820746240,6.5051,138.95,138.88,45.50196]
[1723820746412,6.5051,138.95,138.88,52.70236]
[1723820746742,6.5051,138.95,138.87,382.4]
[1723820746743,65.38,138.94,138.87,382.4]
[1723820746935,6.5051,138.95,138.87,382.4]
[1723820747748,6.5051,138.95,138.89,17.9998]
[1723820747908,6.5051,138.95,138.88,7.45128]
[1723820748235,6.5051,138.95,138.88,0.25098]
[1723820748439,6.5051,138.95,138.87,382.52549]
[1723820748729,71.9051,138.95,138.88,1.10706692]
[1723820749436,65.4,138.91,138.87,382.4]
[1723820749607,7.2004,138.88,138.87,382.4]
[1723820749803,7.201,138.87,138.82,414.2368]
[1723820750126,65.4,138.89,138.82,382.4]
[1723820750312,65.4,138.87,138.82,382.4]
[1723820750516,7.2025,138.84,138.82,382.4]
[1723820750919,7.2025,138.84,138.8,16.6641]
[1723820751123,7.202,138.85,138.8,23.8686]
[1723820751445,71.9051,138.95,138.82,7.2035]
[1723820751625,65.0,138.94,138.82,7.2035]
[1723820752134,65.0,138.94,138.83,1.31169204]
[1723820752340,65.0,138.94,138.85,0.12549]
[1723820752341,7.2004,138.88,138.85,0.12549]
[1723820752510,7.2004,138.88,138.85,0.37647]
[1723820753503,20.0,138.94,138.85,0.12549]
[1723820753707,20.0,138.94,138.82,18.0076]
[1723820753708,45.0,138.93,138.82,18.0076]
[1723820753931,45.0,138.93,138.8,406.2686]
[1723820754133,78.56,138.87,138.8,406.2686]
[1723820754516,78.56,138.87,138.81,7.2039]
[1723820754714,20.0,138.92,138.82,7.2035]
[1723820755021,78.56,138.9,138.82,7.2035]
[1723820755320,78.56,138.9,138.83,0.12549]
[1723820755626,78.56,138.9,138.83,0.25098]
[1723820756340,6.5051,138.95,138.83,18.25768]
[1723820756511,6.5051,138.95,138.85,0.12549]
[1723820756721,6.5051,138.95,138.85,0.99169515]
[1723820757043,6.5051,138.95,138.84,0.25098]
[1723820757210,7.2015,138.86,138.83,382.4]
[1723820757537,6.5051,138.95,138.83,0.12549]
[1723820757847,65.0,138.94,138.83,0.50196]
[1723820758022,7.201,138.87,138.83,7.70496]
[1723820758228,7.2005,138.88,138.83,7.70496]
[1723820758413,7.2005,138.88,138.83,0.50196]
[1723820758619,7.2,138.89,138.84,7.2021]
[1723820758831,7.1994,138.9,138.85,7.70376]
[1723820759022,7.1994,138.9,138.85,7.45278]
[1723820759258,7.1989,138.91,138.86,7.45238]
[1723820759415,7.1985,138.92,138.87,7.45168]
[1723820759742,7.1978,138.93,138.89,0.12549]
[1723820759960,7.1968,138.96,138.91,7.1984]
[1723820760130,7.1968,138.96,138.92,0.12549]
[1723820760313,7.1999,138.89,138.85,16.597]
[1723820760518,7.1995,138.9,138.85,16.597]
[1723820760831,7.2,138.89,138.85,16.597]
[1723820761036,7.1999,138.89,138.85,16.597]
[1723820761234,7.1999,138.89,138.85,18.03382377]
[1723820761536,7.2004,138.88,138.85,16.597]
[1723820761850,7.2005,138.88,138.86,0.12549]
[1723820762031,7.1987,138.92,138.86,46.56483349]
[1723820762339,7.1987,138.92,138.86,71.76913349]
[1723820762520,7.1979,138.93,138.86,64.56783349]
[1723820762717,7.1973,138.94,138.88,18.0003]
[1723820763038,6.1401,138.99,138.9,7.32489]
[1723820763219,7.1977,138.94,138.92,0.12549]
[1723820763421,6.1401,138.99,138.91,0.37647]
[1723820763716,7.1989,138.91,138.89,20.0]
[1723820763921,7.1989,138.91,138.87,7.2005]
[1723820764117,7.1989,138.91,138.88,65.37647]
[1723820764315,7.1984,138.92,138.88,65.37647]
[1723820764528,78.54,138.94,138.88,0.37647]
[1723820764725,78.54,138.94,138.85,16.597]
[1723820764923,78.54,138.91,138.85,16.597]
[1723820766053,78.54,138.94,138.83,6.3687]
[1723820766240,65.0,138.93,138.83,6.3687]
[1723820766732,6.0039,138.92,138.81,415.7387]
[1723820766935,45.0,138.91,138.81,15.329]
[1723820767639,45.0,138.91,138.81,22.533]
[1723820767961,6.0039,138.92,138.82,7.2034]
[1723820768126,7.2016,138.86,138.84,0.12549]
[1723820768331,7.203,138.83,138.82,382.4]
[1723820768966,6.0039,138.92,138.82,382.4]
[1723820769143,65.0,138.91,138.81,15.329]
[1723820769335,65.0,138.91,138.79,388.5921]
[1723820769649,65.0,138.91,138.79,382.4]
[1723820769650,7.2046,138.8,138.79,382.4]
[1723820769861,7.2046,138.8,138.77,397.4015]
[1723820770232,7.2051,138.79,138.77,397.4015]
[1723820770433,6.1264,138.89,138.76,0.8223784]
[1723820770653,65.0,138.88,138.77,1.44032132]
[1723820770967,6.2629,138.87,138.76,383.2223784]
[1723820771132,65.0,138.86,138.76,383.2223784]
[1723820771530,7.2061,138.77,138.76,383.2223784]
[1723820771725,7.2061,138.77,138.76,0.8223784]
[1723820773454,7.2082,138.73,138.69,412.166]
[1723820773652,7.2082,138.73,138.69,29.766]
[1723820774066,7.2078,138.74,138.69,29.766]
[1723820774257,7.2078,138.74,138.7,7.2097]
[1723820774449,7.2078,138.74,138.69,29.766]
[1723820774654,7.2078,138.74,138.7,7.2096]
[1723820774856,7.2082,138.73,138.69,29.7659]
[1723820775071,6.3512,138.79,138.73,7.2082]
[1723820775372,78.54,138.8,138.74,1.44004976]
[1723820776171,78.54,138.8,138.72,0.12549]
[1723820776468,78.54,138.8,138.72,0.50196]
[1723820777569,78.54,138.8,138.72,7.71066]
[1723820778069,78.54,138.8,138.72,0.50196]
[1723820778266,78.54,138.8,138.72,0.25098]
[1723820779146,78.54,138.8,138.72,0.12549]
[1723820779457,7.2086,138.73,138.7,382.4]
[1723820779657,7.2077,138.74,138.69,29.7656]
[1723820779855,7.2068,138.76,138.71,7.2089]
[1723820780274,7.2068,138.76,138.72,7.2087]
[1723820780457,78.54,138.8,138.71,18.0224]
[1723820780692,15.0137,138.91,138.77,15.3955]
[1723820780904,7.2016,138.86,138.81,7.204]
[1723820781101,7.2016,138.86,138.82,0.50196]
[1723820781304,6.361,138.9,138.82,0.12549]
[1723820781305,7.202,138.85,138.82,0.12549]
[1723820781492,7.2016,138.86,138.81,7.58037]
[1723820781691,7.2011,138.87,138.83,0.12549]
[1723820781906,7.2022,138.85,138.82,0.12549]
[1723820782309,7.2022,138.85,138.81,400.66058]
[1723820782611,6.361,138.9,138.81,382.65098]
[1723820782821,6.361,138.9,138.82,0.12549]
[1723820783026,6.361,138.9,138.82,0.25098]
[1723820783522,6.361,138.9,138.82,0.12549]
[1723820783714,6.361,138.9,138.82,52.57987]
[1723820783898,2.91839411,138.93,138.83,0.12549]
[1723820784081,6.496,138.94,138.86,7.32689]
[1723820784286,6.496,138.94,138.88,0.12549]
[1723820784510,7.52904579,138.98,138.88,0.12549]
[1723820784707,16.71672038,138.98,138.88,0.12549]
[1723820785315,9.18767459,138.98,138.88,0.12549]
[1723820785898,9.18767459,138.98,138.87,0.12549]
[1723820786116,7.1995,138.9,138.88,0.12549]
[1723820787318,6.3653,138.98,138.88,0.12549]
[1723820787515,7.1976,138.94,138.9,0.12549]
[1723820787830,7.1964,138.96,138.91,7.32399]
[1723820788034,7.1968,138.95,138.92,0.25098]
[1723820788222,7.1973,138.94,138.91,0.12549]
[1723820788523,7.1973,138.94,138.91,0.50196]
[1723820789425,78.54,138.96,138.91,0.12549]
[1723820789609,7.1983,138.92,138.9,382.4]
[1723820790005,78.54,138.96,138.9,382.4]
[1723820790214,7.1985,138.92,138.9,382.4]
[1723820790434,7.1978,138.93,138.9,382.4]
[1723820790734,7.1986,138.92,138.9,382.4]
[1723820791610,7.1979,138.93,138.9,382.4]
[1723820791925,7.1985,138.92,138.9,382.4]
[1723820792218,3.38236103,138.99,138.84,382.4]
[1723820792219,7.2008,138.88,138.84,382.4]
[1723820792594,78.54,138.93,138.84,382.4]
[1723820792822,7.2011,138.87,138.84,382.4]
[1723820793198,78.54,138.93,138.84,382.4]
[1723820793393,78.54,138.93,138.88,7.2004]
[1723820793792,78.54,138.93,138.88,0.12549]
[1723820794012,78.54,138.93,138.84,382.4]
[1723820794910,78.54,138.93,138.85,17.18881281]
[1723820795095,78.54,138.93,138.86,1.43950913]
[1723820795306,78.54,138.93,138.86,0.12549]
[1723820795513,78.54,138.93,138.86,0.25098]
[1723820796213,78.54,138.93,138.85,15.7492]
[1723820796399,45.0,138.92,138.85,15.7492]
[1723820796917,45.0,138.92,138.81,15.1482]
[1723820797122,6.3519,138.9,138.81,15.1482]
[1723820797302,45.0,138.89,138.81,15.1482]
[1723820797506,7.2035,138.82,138.8,382.4]
[1723820797710,7.2035,138.82,138.79,6.2483]
[1723820797905,45.0,138.89,138.77,397.5482]
[1723820798106,6.3519,138.9,138.77,397.5482]
[1723820798107,7.2019,138.86,138.81,7.2038]
[1723820798534,7.2021,138.85,138.81,7.2038]
[1723820798838,7.2021,138.85,138.82,0.50196]
[1723820799396,7.2015,138.86,138.82,0.50196]
[1723820799620,7.2015,138.86,138.82,54.14540945]
[1723820799904,7.2021,138.85,138.82,0.50196]
[1723820800811,6.3519,138.9,138.82,0.12549]
[1723820801123,78.54,138.86,138.8,0.12549]
[1723820801323,78.54,138.86,138.8,52.70626]
[1723820801510,78.54,138.86,138.8,45.50196]
[1723820801913,6.3519,138.9,138.8,45.50196]
[1723820802226,65.5,138.84,138.8,45.50196]
[1723820802529,65.5,138.84,138.8,0.50196]
[1723820802741,65.5,138.84,138.8,7.70646]
[1723820803039,65.5,138.84,138.8,0.50196]
[1723820804014,65.5,138.86,138.8,52.70636]
[1723820804217,7.2021,138.85,138.82,0.12549]
[1723820804421,7.2026,138.84,138.82,0.12549]
[1723820804739,65.5,138.88,138.8,0.25098]
[1723820804915,65.5,138.88,138.79,382.4]
[1723820805116,7.2037,138.82,138.79,382.4]
[1723820805424,7.2044,138.81,138.77,15.1482]
[1723820805631,7.2048,138.8,138.77,15.1482]
[1723820806321,60.1902,138.87,138.77,15.1482]
[1723820806641,7.2039,138.82,138.77,15.1482]
[1723820806826,7.2031,138.83,138.78,1.56548105]
[1723820807015,7.2031,138.83,138.79,0.12549]
[1723820808319,60.1902,138.87,138.78,0.12549]
[1723820808524,60.1902,138.87,138.78,0.25098]
[1723820809834,60.1902,138.87,138.78,8.896156]
[1723820810139,60.1902,138.87,138.79,0.12549]
[1723820810537,45.0,138.87,138.79,0.12549]
[1723820810720,65.5,138.88,138.8,0.12549]
[1723820810925,20.0,138.87,138.8,0.25098]
[1723820811428,65.5,138.85,138.8,0.25098]
[1723820811620,65.5,138.85,138.81,0.25098]
[1723820811818,65.5,138.85,138.81,0.12549]
[1723820812022,65.5,138.85,138.8,0.25098]
[1723820812221,65.5,138.85,138.79,0.25098]
[1723820812520,72.7034,138.83,138.79,0.25098]
[1723820813626,7.2021,138.85,138.81,0.12549]
[1723820814020,7.2008,138.88,138.82,7.2034]
[1723820814359,7.201,138.87,138.83,0.37647]
[1723820814539,7.2017,138.86,138.81,13.6482]
[1723820814738,7.2017,138.86,138.82,0.25098]
[1723820814928,65.5,138.88,138.82,0.25098]
[1723820815125,65.5,138.86,138.82,0.25098]
[1723820815440,7.2021,138.85,138.82,0.25098]
[1723820815640,72.7018,138.86,138.82,0.25098]
[1723820816341,65.5,138.86,138.82,0.25098]
[1723820816644,65.5,138.86,138.8,0.25098]
[1723820816827,65.5,138.84,138.8,0.12549]
[1723820817027,65.5,138.84,138.8,0.25098]
[1723820817227,65.5,138.84,138.8,0.12549]
[1723820817823,6.3519,138.9,138.81,0.12549]
[1723820818026,20.0,138.89,138.81,0.12549]
[1723820818530,20.0,138.89,138.81,0.25098]
[1723820818837,20.0,138.89,138.82,0.12549]
[1723820819223,20.0,138.89,138.81,0.12549]
[1723820819429,20.0,138.89,138.8,0.25098]
[1723820819649,20.0,138.89,138.81,0.12549]
[1723820820149,7.2029,138.84,138.8,0.37647]
[1723820820547,7.2029,138.84,138.81,0.12549]
[1723820820932,7.2032,138.83,138.79,382.4]
[1723820821134,65.5,138.85,138.79,382.4]
[1723820821637,7.2026,138.84,138.79,389.6047]
[1723820821957,7.2007,138.88,138.82,7.2032]
[1723820822257,6.3475,138.93,138.84,0.12549]
[1723820822457,30.0,141.26,138.86,0.12549]
[1723820822458,7.1995,138.9,138.86,0.12549]
[1723820822626,7.1995,138.9,138.86,0.50196]
[1723820823135,65.5,138.9,138.85,16.5887]
[1723820823449,81.53,138.95,138.84,382.4]
[1723820823657,7.2013,138.87,138.84,382.4]
[1723820823841,81.53,138.95,138.84,382.4]
[1723820824047,20.0,138.94,138.84,382.4]
[1723820824363,7.2016,138.86,138.84,382.4]
[1723820824751,7.201,138.87,138.84,382.4]
[1723820825250,20.0,138.94,138.84,382.4]
[1723820825426,7.201,138.87,138.84,382.4]
[1723820825628,7.2008,138.88,138.84,382.4]
[1723820825829,20.0,138.94,138.84,382.4]
[1723820825830,7.2,138.89,138.84,382.4]
[1723820826029,7.2005,138.88,138.85,0.12549]
[1723820826256,7.2,138.89,138.85,0.25098]
[1723820826451,7.2,138.89,138.85,1.69066041]
[1723820826662,20.0,138.94,138.84,382.4]
[1723820826829,65.5,138.87,138.84,382.4]
[1723820827034,72.7011,138.87,138.84,382.4]
[1723820827544,65.5,138.87,138.84,382.4]
[1723820827953,7.2014,138.86,138.83,0.12549]
[1723820828447,72.7011,138.87,138.83,0.12549]
[1723820828759,7.2006,138.88,138.83,0.25098]
[1723820828955,7.2006,138.88,138.83,8.89346742]
[1723820829140,7.2006,138.88,138.83,7.45378]
[1723820829533,7.2006,138.88,138.84,1.43886611]
[1723820829856,7.2006,138.88,138.85,0.25098]
[1723820830060,7.2006,138.88,138.85,0.12549]
[1723820830430,20.0,138.94,138.85,1.56413878]
[1723820830632,7.1988,138.92,138.87,7.32639]
[1723820830835,7.199,138.91,138.88,0.12549]
[1723820831239,7.199,138.91,138.87,0.12549]
[1723820831644,65.5,138.94,138.87,0.12549]
[1723820831944,65.5,138.94,138.87,45.12549]
[1723820832149,65.5,138.94,138.89,0.12549]
[1723820833181,2.87394758,138.98,138.89,15.18929]
[1723820833469,20.0,138.98,138.85,15.0638]
[1723820833645,7.51857201,138.97,138.85,15.0638]
[1723820833836,20.0,138.96,138.85,15.0638]
[1723820834031,20.0,138.96,138.85,22.2657]
[1723820834652,45.0,138.95,138.86,7.32659]
[1723820834855,20.0,138.94,138.87,0.12549]
[1723820835051,20.0,138.94,138.87,0.25098]
[1723820835760,7.51857201,138.97,138.89,0.12549]
[1723820835935,20.0,138.96,138.89,1.69012335]
[1723820836137,20.0,138.96,138.89,0.25098]
[1723820836359,20.0,138.96,138.89,1.69023706]
[1723820836570,7.1982,138.93,138.89,1.69023706]
[1723820836764,7.1982,138.93,138.89,0.25098]
[1723820836950,20.0,138.96,138.89,0.25098]
[1723820836951,7.1985,138.92,138.89,0.25098]
[1723820837144,7.1989,138.91,138.89,0.12549]
[1723820837464,20.0,138.96,138.89,0.12549]
[1723820837663,20.0,138.96,138.89,0.25098]
[1723820838640,7.1974,138.94,138.89,7.45068]
[1723820839040,7.1974,138.94,138.91,0.12549]
[1723820839259,7.1978,138.93,138.88,7.2001]
[1723820839468,7.1978,138.93,138.89,0.37647]
[1723820840166,7.1984,138.92,138.88,0.12549]
[1723820840351,7.1984,138.92,138.88,0.50196]
[1723820840666,7.1984,138.92,138.88,0.37647]
[1723820840855,20.0,138.96,138.88,0.37647]
[1723820841059,7.1997,138.9,138.87,0.12549]
[1723820841260,7.199,138.91,138.85,22.2654]
[1723820841653,7.199,138.91,138.86,389.6014]
[1723820842271,20.0,138.98,138.88,7.2001]
[1723820842454,7.1974,138.94,138.9,0.12549]
[1723820842662,7.1974,138.94,138.9,0.25098]
[1723820842864,20.0,138.98,138.89,0.12549]
[1723820843047,45.0,138.97,138.88,407.72649]
[1723820843383,45.0,138.97,138.89,0.37647]
[1723820843384,20.0,138.96,138.89,0.37647]
[1723820843679,65.5,138.95,138.89,0.37647]
[1723820844249,65.5,138.93,138.88,382.4]
[1723820845367,65.5,138.95,138.88,382.4]
[1723820845577,65.0,138.94,138.88,382.4]
[1723820845787,20.0,138.94,138.85,33.0684]
[1723820845951,7.1987,138.92,138.87,7.2009]
[1723820846151,20.0,138.94,138.85,415.4684]
[1723820846367,7.2001,138.89,138.85,397.4638]
[1723820846673,65.5,138.9,138.85,397.4638]
[1723820846674,72.6995,138.9,138.85,397.4638]
[1723820846850,72.6995,138.9,138.85,404.6657]
[1723820847053,7.1995,138.9,138.85,404.6657]
[1723820847695,7.1991,138.91,138.85,404.6657]
[1723820847978,7.1985,138.92,138.86,18.37997]
[1723820848180,7.1985,138.92,138.88,0.12549]
[1723820848483,7.1989,138.91,138.88,0.12549]
[1723820849779,65.5,138.94,138.88,0.12549]
[1723820850271,65.5,138.94,138.88,0.25098]
[1723820850669,65.5,138.94,138.88,0.12549]
[1723820850870,29.81724315,138.99,138.88,19.56548048]
[1723820850871,65.5,138.96,138.88,19.56548048]
[1723820851077,65.5,138.96,138.9,0.12549]
[1723820851269,65.5,138.98,138.9,19.56287322]
[1723820851459,65.5,138.98,138.91,45.37647]
[1723820851658,65.5,138.98,138.93,16.2235]
[1723820851870,65.5,139.0,138.94,7.69886]
[1723820852071,65.5,139.02,138.96,0.12549]
[1723820852270,65.5,139.04,138.96,1.94049414]
[1723820852581,65.5,139.04,138.98,0.12549]
[1723820853182,65.5,139.04,138.98,1.68941788]
[1723820853385,65.5,139.04,138.98,1.81490788]
[1723820853775,6.2527,139.07,138.96,0.12549]
[1723820854088,7.1943,139.0,138.95,0.25098]
[1723820854280,7.1943,139.0,138.95,52.69866]
[1723820854464,72.6938,139.01,138.95,52.69866]
[1723820854888,7.1943,139.0,138.95,0.50196]
[1723820855273,6.2527,139.07,138.95,0.12549]
[1723820855583,45.0,139.06,138.95,0.25098]
[1723820855790,45.0,139.06,138.97,7.1957]
[1723820855791,7.1932,139.02,138.97,7.1957]
[1723820856461,7.1925,139.04,138.98,1.56365106]
[1723820856680,6.2527,139.07,138.99,1.81475402]
[1723820856681,7.193,139.03,138.99,1.81475402]
[1723820856873,7.193,139.03,138.99,0.37647]
[1723820857278,6.2527,139.07,138.98,0.12549]
[1723820857485,20.0,139.06,138.97,0.12549]
[1723820857875,45.0,139.05,138.97,0.12549]
[1723820858078,20.0,139.04,138.96,0.37647]
[1723820858280,45.0,139.03,138.95,382.4]
[1723820858477,20.0,139.02,138.95,382.4]
[1723820859888,45.0,139.03,138.95,382.4]
[1723820860792,9.1069132,139.07,138.94,18.24388]
[1723820860984,9.1069132,139.07,138.95,0.37647]
[1723820860985,65.0,139.06,138.95,0.37647]
[1723820861176,65.5,139.02,138.96,0.12549]
[1723820861693,7.1943,139.0,138.95,0.37647]
[1723820861892,65.5,139.0,138.93,16.2235]
[1723820862087,65.5,139.0,138.94,7.69926]
[1723820862292,65.5,139.0,138.95,17.9915]
[1723820862488,65.5,139.02,138.96,7.69806]
[1723820862876,72.6933,139.02,138.97,7.1956]
[1723820863392,72.6933,139.02,138.96,7.69806]
[1723820863578,72.6934,139.02,138.97,7.1957]
[1723820863906,72.6934,139.02,138.96,7.69806]
[1723820864576,7.1934,139.02,138.96,7.69806]
[1723820865197,65.5,139.02,138.96,7.69806]
[1723820865979,65.0,139.06,138.96,7.69806]
[1723820865980,65.5,139.04,138.97,17.989]
[1723820866173,65.5,139.04,138.98,45.50196]